bitfinex-derivatives/quotes_ETHF0:USTF0_20250824
["timestamp","ask_amount","ask_price","bid_price","bid_amount"]
[1756052668227,1.0187,4822.3,4822.2,0.3701]
[1756052668530,1.0187,4822.3,4822.2,1.73435]
[1756052668531,1.3209,4822.3,4822.2,1.73435]
[1756052668934,0.5398,4822.3,4822.2,1.73435]
[1756052669233,1.3209,4822.7,4822.6,0.93371]
[1756052669528,1.3209,4822.7,4822.6,1.73431]
[1756052669734,0.3022,4822.7,4822.6,1.73431]
[1756052671234,1.3209,4822.7,4822.6,1.73431]
[1756052671731,1.3209,4822.7,4822.6,2.18678271]
[1756052672526,1.3209,4822.7,4822.6,0.45247271]
[1756052674732,1.3209,4822.7,4822.6,0.97137271]
[1756052674926,1.3209,4822.7,4822.6,1.77197271]
[1756052676022,1.3209,4822.7,4822.6,0.97137271]
[1756052676227,1.3209,4822.7,4822.6,0.45247271]
[1756052676629,5.3209,4822.7,4822.6,0.45247271]
[1756052676830,20.7259,4822.7,4822.6,1.74567271]
[1756052678034,20.7259,4822.7,4822.6,0.45247271]
[1756052678238,24.7259,4822.7,4822.6,0.45247271]
[1756052678435,0.9691,4821.6,4821.5,1.70791]
[1756052678733,0.6154,4821.6,4821.5,1.70791]
[1756052679132,0.3804,4821.6,4821.5,1.70791]
[1756052679731,0.6154,4821.6,4821.5,1.70791]
[1756052680322,0.3537,4823.3,4822.8,0.359]
[1756052680526,0.3537,4823.3,4823.2,0.7445]
[1756052680527,1.38385,4823.3,4823.2,0.7445]
[1756052681330,0.6154,4823.3,4823.2,1.293]
[1756052681936,20.0214,4823.7,4823.6,1.293]
[1756052682121,20.3751,4823.7,4823.6,1.293]
[1756052682726,20.3751,4823.7,4823.6,1.70773]
[1756052683036,20.3751,4823.7,4823.6,0.7445]
[1756052683430,20.3751,4823.7,4823.6,0.6015]
[1756052683824,0.9691,4823.7,4823.6,1.293]
[1756052685324,0.41468,4824.2,4823.6,1.293]
[1756052685325,19.549,4823.9,4823.8,0.359]
[1756052685524,19.549,4823.9,4823.8,1.293]
[1756052685736,1.491144,4826.1,4823.2,1.05759]
[1756052685737,0.7341,4824.4,4824.3,1.1391]
[1756052685933,0.9691,4824.4,4824.3,1.293]
[1756052686825,0.41464,4824.7,4824.4,0.41466]
[1756052687138,1.38374,4824.7,4824.6,0.7445]
[1756052687337,20.78774,4824.7,4824.6,0.7445]
[1756052687836,20.3731,4824.7,4824.6,1.0665]
[1756052688037,0.9691,4824.7,4824.6,1.0665]
[1756052688235,0.9691,4824.7,4824.6,0.6015]
[1756052688236,20.3731,4824.7,4824.6,0.6015]
[1756052688833,0.9691,4824.7,4824.6,0.6015]
[1756052689237,20.3721,4824.7,4824.6,0.6015]
[1756052690032,0.9691,4824.7,4824.6,1.293]
[1756052691940,20.3701,4824.7,4824.6,1.293]
[1756052692139,0.9691,4824.7,4824.6,0.3855]
[1756052692332,20.3691,4824.7,4824.6,0.2316]
[1756052692537,20.3691,4824.7,4824.6,0.3855]
[1756052692739,20.3691,4824.7,4824.6,0.6015]
[1756052693037,0.9691,4824.7,4824.6,0.7445]
[1756052693238,20.3681,4824.7,4824.6,0.7445]
[1756052693434,0.9691,4824.7,4824.6,0.7445]
[1756052693630,20.3681,4824.7,4824.6,0.7445]
[1756052693834,20.3671,4824.7,4824.6,0.7445]
[1756052694240,0.9691,4824.7,4824.6,0.7445]
[1756052694445,20.3671,4824.7,4824.6,0.7445]
[1756052694633,0.9691,4824.7,4824.6,0.7445]
[1756052695040,20.3671,4824.7,4824.6,0.7445]
[1756052695538,20.3671,4824.7,4824.6,0.2316]
[1756052695734,20.3671,4824.7,4823.2,1.03689]
[1756052695735,0.3804,4824.0,4823.9,0.9276]
[1756052695929,19.7517,4824.2,4824.1,0.41468]
[1756052696242,19.397,4824.2,4824.1,1.70768]
[1756052696436,0.144,4824.2,4824.1,1.70768]
[1756052696643,0.79503,4824.7,4824.6,0.5129]
[1756052696940,20.77973,4824.7,4824.6,1.293]
[1756052697136,20.3651,4824.7,4824.6,1.293]
[1756052697330,20.3651,4824.7,4824.5,0.41465]
[1756052697331,0.41464,4824.6,4824.5,0.41465]
[1756052697530,0.9691,4823.7,4823.6,0.80023]
[1756052697841,20.3651,4823.7,4823.6,0.2316]
[1756052698038,0.3804,4823.3,4823.2,0.64636]
[1756052698245,0.9691,4823.3,4823.2,0.64636]
[1756052698938,0.9691,4823.3,4823.2,0.80026]
[1756052699343,0.9691,4823.3,4823.2,1.01626]
[1756052700333,0.9691,4823.3,4823.2,0.3855]
[1756052701549,0.9691,4823.3,4823.2,0.2316]
[1756052702147,0.7327,4823.3,4823.2,0.5285]
[1756052702341,20.3631,4823.3,4823.2,0.7445]
[1756052702741,0.3804,4823.7,4823.6,0.92763]
[1756052703047,19.7744,4823.7,4823.6,1.15923]
[1756052703346,20.3631,4823.7,4823.6,1.70773]
[1756052703650,20.3631,4823.7,4823.6,0.2316]
[1756052704947,20.3621,4823.7,4823.6,1.293]
[1756052705145,0.9691,4823.7,4823.6,1.293]
[1756052705345,20.0084,4823.7,4823.6,1.293]
[1756052705548,19.7734,4823.7,4823.6,1.293]
[1756052705847,0.6154,4823.7,4823.6,1.293]
[1756052706548,19.7734,4823.7,4823.6,1.293]
[1756052706748,0.9691,4823.7,4823.6,1.293]
[1756052707147,0.9691,4823.7,4823.6,0.2316]
[1756052707540,19.393,4823.8,4823.2,0.41476]
[1756052707745,0.962,4823.1,4823.0,0.41477]
[1756052707947,20.354,4823.1,4823.0,0.41477]
[1756052708249,29.866,4824.5,4823.5,0.1507]
[1756052708445,0.7323,4823.6,4823.5,1.52743]
[1756052708746,0.7323,4824.0,4823.9,0.8017]
[1756052708946,0.7323,4824.0,4823.9,1.7591]
[1756052708947,0.1554,4824.0,4823.9,1.7591]
[1756052709148,0.962,4824.3,4824.2,1.3444]
[1756052709352,20.353,4824.3,4824.2,1.3444]
[1756052710140,0.962,4824.3,4824.2,1.3444]
[1756052710345,19.5464,4824.3,4824.2,1.3444]
[1756052710651,20.353,4824.3,4824.2,1.3444]
[1756052711450,0.381,4824.4,4824.3,1.75907]
[1756052711847,0.5067,4824.6,4824.5,0.80165]
[1756052712046,0.5067,4824.6,4824.5,1.75905]
[1756052712252,20.352,4824.6,4824.5,1.75905]
[1756052712549,0.962,4824.8,4824.7,1.03043]
[1756052712852,0.381,4824.8,4824.7,1.18113]
[1756052713051,0.381,4824.8,4824.7,1.75903]
[1756052713355,0.381,4825.2,4825.1,1.759]
[1756052713654,0.381,4825.6,4825.5,0.7694]
[1756052713956,0.381,4825.6,4825.5,1.1156]
[1756052714251,0.962,4825.6,4825.5,1.3444]
[1756052715255,0.381,4825.6,4825.5,1.3444]
[1756052715455,0.962,4825.6,4825.5,1.3444]
[1756052716051,20.349,4825.6,4825.5,0.7694]
[1756052716260,0.962,4825.6,4825.5,0.2317]
[1756052716457,20.349,4825.6,4825.5,0.2317]
[1756052718159,0.381,4824.8,4824.7,1.52733]
[1756052718363,0.962,4824.8,4824.7,1.52733]
[1756052718553,0.6107,4824.8,4824.7,1.52733]
[1756052718756,0.962,4825.2,4825.1,1.759]
[1756052719048,0.7364,4825.2,4825.1,1.759]
[1756052719452,0.962,4825.6,4825.5,1.75896]
[1756052719653,20.345,4825.6,4825.5,1.75896]
[1756052720261,20.75855,4825.6,4825.5,0.6167]
[1756052720460,20.75855,4825.6,4825.5,0.3824]
[1756052720854,20.75855,4825.6,4825.5,0.2317]
[1756052721055,20.344,4825.6,4825.5,0.3824]
[1756052721260,20.344,4825.6,4825.5,0.7694]
[1756052721457,20.343,4825.6,4825.5,1.41276]
[1756052721662,20.343,4825.6,4825.5,1.75896]
[1756052721864,0.381,4825.6,4825.5,1.75896]
[1756052722064,0.1554,4825.6,4825.5,1.75896]
[1756052722365,0.6107,4825.9,4825.8,0.5377]
[1756052722554,20.342,4825.9,4825.8,1.75894]
[1756052722754,20.342,4825.9,4825.8,0.79694]
[1756052722956,20.342,4825.9,4825.8,1.75894]
[1756052723361,20.342,4825.9,4825.8,0.3824]
[1756052723559,20.342,4825.9,4825.8,0.2317]
[1756052724259,20.341,4825.9,4825.8,0.2317]
[1756052724460,0.962,4825.9,4825.8,1.3444]
[1756052724764,0.962,4825.9,4825.8,0.2317]
[1756052724765,20.34,4825.9,4825.8,0.2317]
[1756052725561,20.34,4825.9,4825.7,0.41454]
[1756052725861,0.962,4825.8,4825.7,0.41454]
[1756052726066,0.962,4825.8,4825.7,0.79694]
[1756052726269,0.962,4825.8,4825.7,1.75894]
[1756052726466,20.339,4825.8,4825.7,1.75894]
[1756052726867,0.962,4825.8,4825.7,1.75894]
[1756052727067,20.338,4825.8,4825.7,1.75894]
[1756052727867,1.37652,4826.1,4826.0,1.3444]
[1756052728066,20.75252,4826.1,4826.0,1.3444]
[1756052728657,20.75252,4826.1,4826.0,0.6167]
[1756052729969,20.75152,4826.1,4826.0,0.6167]
[1756052730463,20.337,4826.1,4826.0,0.6167]
[1756052731364,0.962,4826.1,4826.0,0.6167]
[1756052731565,20.335,4826.1,4826.0,0.7694]
[1756052731963,20.335,4826.1,4826.0,1.1156]
[1756052732168,0.962,4826.1,4826.0,1.1156]
[1756052732367,20.334,4826.1,4826.0,0.7694]
[1756052733273,20.334,4826.1,4826.0,1.3444]
[1756052736366,20.334,4826.1,4826.0,1.1156]
[1756052736569,20.334,4826.1,4826.0,0.7694]
[1756052736965,20.334,4826.1,4826.0,0.6167]
[1756052739665,20.334,4826.1,4826.0,0.7666]
[1756052739861,20.334,4826.1,4826.0,1.3155]
[1756052740062,0.962,4826.1,4826.0,0.7666]
[1756052740267,20.328,4826.1,4826.0,0.7666]
[1756052741066,20.328,4826.1,4826.0,0.3824]
[1756052741263,0.962,4826.1,4826.0,0.2317]
[1756052741467,20.327,4826.1,4826.0,0.2317]
[1756052741663,20.74152,4826.1,4825.9,0.41453]
[1756052741870,0.9485,4825.9,4825.8,0.63063]
[1756052743078,0.9485,4825.9,4825.8,0.2161]
[1756052743279,0.3789,4825.9,4825.7,0.41454]
[1756052743477,0.9485,4825.8,4825.7,0.63064]
[1756052743775,0.98418,4825.4,4825.2,1.89989221]
[1756052743976,20.3115,4825.3,4825.2,0.41458]
[1756052744980,20.3115,4825.3,4825.2,0.63068]
[1756052747784,0.9485,4825.3,4825.2,0.63068]
[1756052748078,20.3095,4825.3,4825.2,0.63068]
[1756052748380,20.3085,4825.3,4825.2,0.63068]
[1756052749178,0.9485,4825.3,4825.2,0.63068]
[1756052749381,20.3085,4825.3,4825.2,0.63068]
[1756052750481,0.9485,4825.3,4825.2,1.15138]
[1756052750680,20.3065,4825.3,4825.2,1.70028]
[1756052750979,0.5696,4825.6,4825.5,0.41456]
[1756052751176,0.9485,4825.6,4825.5,1.70026]
[1756052753082,0.9485,4826.0,4825.9,1.70023]
[1756052753279,0.9485,4826.0,4825.9,0.78603]
[1756052754278,0.9485,4826.0,4825.9,1.70023]
[1756052759074,0.3789,4826.0,4825.9,1.70023]
[1756052759278,0.9485,4826.3,4826.2,1.7002]
[1756052760074,0.9485,4826.3,4826.2,0.2161]
[1756052760273,0.9485,4826.3,4826.1,0.41451]
[1756052760274,0.9485,4826.2,4826.1,0.41451]
[1756052760486,0.9485,4826.2,4826.1,0.63061]
[1756052760984,0.9485,4826.2,4826.1,0.78601]
[1756052761184,20.2985,4826.2,4826.1,0.78601]
[1756052761386,20.2975,4826.2,4826.1,0.78601]
[1756052761586,0.9485,4826.2,4826.1,1.70021]
[1756052761782,20.2975,4826.2,4826.1,1.70021]
[1756052761985,0.9485,4826.2,4826.1,1.70021]
[1756052762282,0.9485,4826.5,4826.4,0.93519]
[1756052762487,0.9485,4826.5,4826.4,1.70019]
[1756052765288,20.2935,4826.5,4826.4,1.70019]
[1756052766187,0.9485,4826.5,4826.4,1.70019]
[1756052767890,20.2925,4826.5,4826.4,1.70019]
[1756052770490,20.2885,4826.5,4826.4,1.70019]
[1756052772691,20.2855,4826.5,4826.4,1.70019]
[1756052774691,0.9485,4826.5,4826.4,1.70019]
[1756052774890,20.2835,4826.5,4826.4,1.70019]
[1756052777688,0.9485,4826.5,4826.4,1.70019]
[1756052777892,0.3656,4827.3,4827.2,0.78782]
[1756052778190,19.6966,4827.3,4827.2,0.78782]
[1756052778394,20.2706,4827.3,4827.2,0.78782]
[1756052778695,0.9396,4827.3,4827.2,1.71902]
[1756052778894,0.95504764,4827.3,4827.2,1.71902]
[1756052779096,0.01544764,4827.3,4827.2,1.71902]
[1756052779792,0.9396,4827.6,4827.5,0.38349472]
[1756052779997,0.9396,4827.6,4827.5,1.68809472]
[1756052780592,0.1426,4827.0,4826.9,0.95213961]
[1756052780789,0.9396,4827.0,4826.9,1.88333961]
[1756052780989,0.95504764,4827.0,4826.9,1.88333961]
[1756052781986,0.96572592,4827.0,4826.9,1.88333961]
[1756052782293,0.39172592,4827.0,4826.9,1.88333961]
[1756052782790,0.02612592,4827.0,4826.9,1.88333961]
[1756052782988,0.96572592,4827.0,4826.9,1.49103961]
[1756052783191,0.96572592,4827.0,4826.9,1.71904]
[1756052783499,0.96572592,4827.0,4826.9,1.18014]
[1756052784290,0.39172592,4827.0,4826.9,1.71904]
[1756052784493,0.96572592,4827.0,4826.9,1.71904]
[1756052785097,0.96572592,4827.0,4826.9,1.02424]
[1756052785298,0.9396,4826.3,4826.2,1.1802]
[1756052785600,0.9396,4826.3,4826.2,0.7879]
[1756052785789,0.9396,4826.3,4826.2,0.6326]
[1756052785993,0.96572592,4826.3,4826.2,0.6326]
[1756052786202,0.96572592,4826.3,4826.2,0.2181]
[1756052786893,20.28672592,4826.3,4826.2,0.2181]
[1756052787194,0.9396,4825.9,4825.8,0.41453]
[1756052787594,0.98121173,4825.9,4825.8,0.41453]
[1756052787799,0.98121173,4825.9,4825.8,0.63263]
[1756052788000,0.98121173,4825.9,4825.8,0.78793]
[1756052788197,0.98121173,4825.9,4825.8,1.18023]
[1756052788396,0.98121173,4825.9,4825.8,1.71913]
[1756052788593,0.99426163,4825.9,4825.8,1.71913]
[1756052788795,0.05466163,4825.9,4825.8,1.71913]
[1756052790198,0.99426163,4825.9,4825.8,1.71913]
[1756052790395,0.42026163,4825.9,4825.8,1.71913]
[1756052790595,0.05466163,4825.9,4825.8,1.71913]
[1756052792707,0.42026163,4825.9,4825.8,1.71913]
[1756052792907,0.99426163,4825.9,4825.8,1.71913]
[1756052793411,0.05466163,4825.9,4825.8,1.71913]
[1756052793810,0.3551,4826.8,4826.7,0.2364]
[1756052793999,0.0547,4827.6,4826.7,0.2364]
[1756052794000,20.1253,4827.1,4827.0,1.17893]
[1756052794206,20.1253,4827.1,4827.0,1.71903]
[1756052794413,20.14074882,4827.1,4827.0,1.71903]
[1756052794709,1.04264882,4827.1,4827.0,1.71903]
[1756052795403,0.17113571,4827.1,4827.0,1.71903]
[1756052796610,0.96813571,4827.1,4827.0,1.71903]
[1756052796798,1.05573571,4827.1,4827.0,1.71903]
[1756052797205,0.41447,4826.6,4826.2,2.23051221]
[1756052797503,1.0502,4826.2,4826.1,0.41451]
[1756052797711,1.46471,4826.2,4825.9,0.41452]
[1756052797908,0.9959,4826.0,4825.9,0.63992]
[1756052798109,0.9959,4826.0,4825.9,0.78512]
[1756052798610,1.02443571,4826.0,4825.9,0.78512]
[1756052798911,1.02443571,4826.0,4825.9,0.3706]
[1756052799208,1.07873571,4826.0,4825.9,0.2254]
[1756052800513,0.6837,4825.8,4825.4,0.41456]
[1756052800804,1.0502,4825.5,4825.4,0.2254]
[1756052801004,1.0502,4825.5,4825.4,0.63997]
[1756052801213,0.9959,4824.9,4824.8,1.075]
[1756052801806,0.9959,4824.9,4824.8,1.3004]
[1756052802005,0.9959,4824.9,4824.8,1.71502]
[1756052802210,1.05297142,4824.9,4824.8,1.71502]
[1756052802599,1.05297142,4824.9,4824.8,1.50012]
[1756052802807,1.05297142,4824.9,4824.8,0.78522]
[1756052803413,1.05297142,4824.9,4824.8,0.2254]
[1756052803414,1.10727142,4824.9,4824.8,0.2254]
[1756052803711,20.41827142,4824.9,4824.8,0.2254]
[1756052804501,0.7801,4824.1,4824.0,0.5203]
[1756052804706,0.9959,4824.1,4824.0,0.3706]
[1756052805108,1.05297142,4824.1,4824.0,0.3706]
[1756052805310,1.05297142,4824.1,4824.0,1.0855]
[1756052806814,1.05297142,4824.1,4824.0,0.7548]
[1756052807015,1.05297142,4824.1,4824.0,0.3706]
[1756052807211,1.05297142,4824.1,4824.0,0.2254]
[1756052807212,1.10727142,4824.1,4824.0,0.2254]
[1756052807909,1.05297142,4824.1,4824.0,0.3706]
[1756052808822,1.05297142,4824.1,4824.0,0.6051]
[1756052809015,1.05297142,4824.1,4824.0,1.0855]
[1756052810615,1.05297142,4824.1,4824.0,1.3004]
[1756052813318,0.05707142,4824.1,4824.0,5.3004]
[1756052814513,0.05707142,4824.1,4824.0,5.3211]
[1756052814719,19.4607,4824.9,4824.8,0.5294]
[1756052814916,19.4607,4824.9,4824.8,1.71502]
[1756052815111,0.1507,4824.9,4824.8,1.71502]
[1756052815316,0.1507,4825.2,4825.1,1.715]
[1756052816210,0.74,4825.5,4825.4,1.15887]
[1756052816522,20.373,4825.5,4825.4,1.71497]
[1756052818215,20.373,4825.5,4825.4,1.16937]
[1756052818717,20.373,4825.5,4825.4,0.3706]
[1756052818925,20.4844,4825.5,4825.4,0.2254]
[1756052828831,1.064,4825.5,4825.4,1.305]
[1756052829237,20.362,4825.5,4825.4,1.305]
[1756052831633,19.9311,4825.5,4824.8,0.225]
[1756052831831,1.15264,4824.6,4824.5,0.225]
[1756052832029,20.22254,4824.6,4824.3,0.41466]
[1756052832226,0.6245,4824.4,4824.3,0.41466]
[1756052832436,0.71197,4824.3,4824.2,0.158]
[1756052832633,1.0642,4824.7,4824.6,0.79324]
[1756052832933,0.5129,4824.2,4824.1,0.158]
[1756052833231,1.0642,4824.2,4824.1,0.383]
[1756052833738,0.41468,4824.1,4823.8,1.90001221]
[1756052834036,20.90550026,4824.0,4823.9,0.225]
[1756052834339,20.90550026,4824.0,4823.5,0.225]
[1756052834340,1.59053,4823.6,4823.5,0.225]
[1756052834535,20.88353,4823.6,4823.5,0.225]
[1756052834929,20.90453026,4823.6,4823.5,0.225]
[1756052835437,1.0642,4823.2,4823.1,0.79776]
[1756052835829,1.0642,4823.2,4823.1,1.16796]
[1756052836029,20.37720026,4823.2,4823.1,1.73216]
[1756052836237,20.37720026,4823.2,4823.1,0.7532]
[1756052837341,20.48880026,4823.2,4823.1,0.225]
[1756052838039,0.5129,4822.6,4822.5,0.94302]
[1756052838234,1.0642,4822.6,4822.5,1.73222]
[1756052838629,1.0642,4822.6,4822.5,1.3174]
[1756052838846,20.4668,4822.6,4822.5,0.225]
[1756052839038,0.77966,4822.0,4821.9,0.383]
[1756052839234,0.6245,4821.7,4821.6,0.225]
[1756052839434,19.9155,4821.7,4821.6,0.225]
[1756052839729,20.4668,4821.7,4821.6,0.225]
[1756052840135,20.49533571,4821.7,4821.6,0.225]
[1756052840333,0.5129,4821.1,4821.0,1.0924]
[1756052840537,1.0642,4821.1,4821.0,1.0924]
[1756052840935,1.0642,4821.1,4821.0,1.3174]
[1756052841136,0.02853571,4821.1,4821.0,1.3174]
[1756052842641,0.17773571,4821.1,4821.0,1.3174]
[1756052843842,0.02853571,4821.1,4821.0,1.3174]
[1756052846242,0.5513,4822.7,4822.1,0.94306]
[1756052846450,0.3648,4822.7,4822.6,1.73221]
[1756052846641,19.8069,4823.2,4823.1,0.5282]
[1756052846845,20.3582,4823.2,4823.1,1.3174]
[1756052847043,1.0642,4823.2,4823.1,1.73217]
[1756052847244,20.3562,4823.6,4823.5,0.94293]
[1756052847442,20.3562,4823.6,4823.5,1.3174]
[1756052847744,1.0642,4824.1,4824.0,0.94289]
[1756052847941,1.0642,4824.1,4824.0,0.225]
[1756052848139,0.5513,4823.5,4821.8,22.22917221]
[1756052848336,0.1492,4823.5,4823.4,0.5282]
[1756052848542,0.738,4824.3,4824.2,0.5282]
[1756052848737,1.0642,4824.3,4824.2,1.3174]
[1756052852043,0.41458,4825.4,4824.3,0.41466]
[1756052852252,0.8391,4825.3,4825.2,1.3174]
[1756052852848,1.0642,4825.3,4825.2,1.3174]
[1756052853442,1.0642,4825.3,4825.2,0.6036]
[1756052853642,1.0642,4825.3,4825.2,0.383]
[1756052854044,1.0642,4825.3,4825.2,1.3174]
[1756052854651,4.5129,4825.3,4824.5,0.3456]
[1756052854947,1.2045,4824.6,4824.3,0.41466]
[1756052855138,0.3648,4824.4,4824.0,0.3456]
[1756052855344,1.0642,4824.1,4824.0,1.50709]
[1756052855940,1.0642,4824.1,4824.0,1.3174]
[1756052856145,1.2045,4824.1,4824.0,0.383]
[1756052856342,0.5129,4823.3,4823.2,1.3174]
[1756052856647,1.0642,4823.3,4823.2,1.3174]
[1756052857053,0.3648,4823.3,4823.2,1.73216]
[1756052857253,0.1492,4823.3,4823.2,1.73216]
[1756052857948,0.9512,4823.7,4823.6,1.71363]
[1756052858655,1.1015,4823.7,4823.6,1.71363]
[1756052858951,1.1015,4823.7,4823.6,1.16903]
[1756052859146,1.1015,4823.7,4823.6,0.7543]
[1756052859342,1.2417,4823.7,4823.6,0.2206]
[1756052859553,0.5272,4823.1,4823.0,0.94848]
[1756052859754,1.1015,4823.1,4823.0,1.49308]
[1756052860251,1.1015,4823.1,4823.0,1.71368]
[1756052860655,0.1441,4823.6,4823.5,1.71363]
[1756052860956,19.6569,4824.4,4824.3,0.94836]
[1756052861360,19.4241,4824.7,4824.6,1.71354]
[1756052861557,0.41458,4825.4,4824.1,1.0367]
[1756052861558,0.9512,4825.0,4824.9,1.71351]
[1756052861752,0.3769,4825.0,4824.9,1.71351]
[1756052863556,0.9512,4825.0,4824.9,1.71351]
[1756052863858,20.2302,4825.0,4824.9,1.71351]
[1756052865061,20.3805,4825.0,4824.9,1.71351]
[1756052865654,20.3795,4825.0,4824.9,1.71351]
[1756052867165,20.3795,4825.0,4824.9,0.7543]
[1756052867368,20.3795,4825.0,4824.9,1.2989]
[1756052867568,1.1015,4825.0,4824.9,1.2989]
[1756052867763,20.3775,4825.0,4824.9,1.2989]
[1756052868566,20.3765,4825.0,4824.9,1.2989]
[1756052868974,20.3765,4825.0,4824.9,0.7543]
[1756052869171,20.93131,4825.0,4824.7,0.41462]
[1756052869376,0.7145,4824.9,4824.7,0.63522]
[1756052869577,0.5272,4824.8,4824.7,0.63522]
[1756052869777,1.2417,4824.8,4824.7,0.63522]
[1756052871173,1.2417,4824.8,4824.7,0.2206]
[1756052871777,1.2417,4824.8,4823.6,1.48531221]
[1756052871778,0.5272,4824.5,4824.4,0.41465]
[1756052872083,20.5127,4824.5,4824.4,0.2206]
[1756052872279,1.1015,4824.4,4824.3,0.79176]
[1756052872477,1.1015,4824.4,4824.3,1.71356]
[1756052873377,20.3715,4824.4,4824.3,1.49126]
[1756052873777,20.3715,4824.4,4824.3,1.71356]
[1756052875689,20.5117,4824.4,4824.3,0.2206]
[1756052876288,20.21186,4824.4,4824.2,0.41467]
[1756052876590,1.2417,4824.3,4824.2,0.41467]
[1756052876787,1.2417,4824.3,4824.2,0.63527]
[1756052877087,1.1015,4824.3,4824.2,1.01277]
[1756052877290,20.5097,4824.3,4824.2,0.3771]
[1756052877680,0.41467,4824.2,4824.0,0.41469]
[1756052877890,1.2417,4824.1,4824.0,0.63529]
[1756052878584,1.2417,4824.1,4824.0,0.2206]
[1756052878787,19.268,4824.3,4823.8,0.6353]
[1756052878788,0.9034,4823.9,4823.8,0.6353]
[1756052878987,20.5077,4823.9,4823.8,0.2206]
[1756052880286,19.4101,4823.9,4823.8,1.2989]
[1756052880792,20.3665,4823.9,4823.8,1.2989]
[1756052881484,20.3665,4823.9,4823.8,0.2206]
[1756052881684,0.5272,4823.6,4823.5,0.41473]
[1756052881883,0.5272,4823.3,4823.2,1.48531221]
[1756052882084,1.2417,4823.2,4823.1,0.41477]
[1756052882485,1.2417,4823.2,4823.1,0.63537]
[1756052882788,1.1015,4823.2,4823.1,1.01287]
[1756052883091,1.1015,4823.2,4823.1,0.79187]
[1756052883290,1.2417,4823.2,4823.1,0.79187]
[1756052884393,1.1015,4823.2,4823.1,1.01287]
[1756052884989,0.41477,4823.1,4822.7,1.90010221]
[1756052885193,19.264,4823.3,4822.5,1.48531221]
[1756052885194,0.8648,4822.6,4822.5,1.48531221]
[1756052885390,1.1015,4822.5,4822.4,0.95943]
[1756052885689,1.1015,4822.5,4822.4,1.71373]
[1756052885887,0.5743,4822.9,4822.4,1.71373]
[1756052886091,1.1015,4822.9,4822.8,1.71369]
[1756052886285,20.3645,4822.9,4822.8,1.16909]
[1756052886485,20.3645,4822.9,4822.8,0.79189]
[1756052886695,20.3645,4822.9,4822.8,0.3771]
[1756052886993,20.5047,4822.9,4822.8,0.2206]
[1756052887196,19.263,4822.9,4822.5,0.2231]
[1756052887492,1.2166,4822.6,4822.5,0.63792]
[1756052887787,1.2166,4822.6,4822.5,0.78542]
[1756052888195,0.1573,4822.6,4822.5,1.73912]
[1756052888892,1.0764,4822.6,4822.5,1.73912]
[1756052889591,0.1573,4822.6,4822.5,1.73912]
[1756052890692,1.0764,4822.9,4822.8,1.51599]
[1756052890890,20.3384,4822.9,4822.8,1.3243]
[1756052891097,20.4786,4822.9,4822.4,0.5727]
[1756052891392,1.2166,4822.5,4822.4,0.3706]
[1756052891593,0.3749,4822.1,4822.0,0.3706]
[1756052891794,20.4786,4822.1,4822.0,0.2231]
[1756052891991,0.41486,4822.0,4821.6,0.98759]
[1756052892300,1.0764,4821.7,4821.6,1.7392]
[1756052893197,1.0764,4821.7,4821.6,1.3243]
[1756052893894,1.0764,4821.7,4821.6,0.7516]
[1756052894088,1.2166,4821.7,4821.6,0.2231]
[1756052895091,1.2166,4821.7,4821.1,1.16654]
[1756052895092,0.5307,4821.2,4821.1,1.16654]
[1756052895286,1.0764,4821.2,4821.1,1.73924]
[1756052897095,1.0764,4821.2,4821.1,1.1013]
[1756052897296,1.0764,4821.2,4821.1,0.7516]
[1756052897491,1.2166,4821.2,4821.1,0.3706]
[1756052897691,1.2166,4821.2,4821.1,0.2231]
[1756052898098,1.2166,4821.2,4821.1,0.3706]
[1756052898499,1.0764,4821.2,4821.1,1.1013]
[1756052898700,1.0764,4821.2,4821.1,1.3243]
[1756052899704,0.5307,4821.8,4821.7,0.5285]
[1756052899900,20.3354,4821.8,4821.7,0.7516]
[1756052900101,20.4756,4821.8,4821.7,0.2231]
[1756052900802,0.1573,4821.6,4821.5,0.4149]
[1756052901002,1.2166,4821.6,4821.5,0.638]
[1756052901201,1.2166,4821.6,4821.5,0.3706]
[1756052901602,1.2166,4821.6,4821.5,0.2231]
[1756052902308,1.2166,4821.6,4821.3,0.41492]
[1756052902309,1.2166,4821.4,4821.3,0.63802]
[1756052902609,1.2166,4821.4,4821.3,0.2231]
[1756052903907,0.9206,4821.4,4821.3,1.38952]
[1756052904102,1.0764,4821.4,4821.3,1.38952]
[1756052904304,1.0764,4821.4,4821.3,0.7516]
[1756052904501,1.2166,4821.4,4821.3,0.2231]
[1756052905006,1.2166,4821.4,4820.8,0.3497]
[1756052905206,19.26,4821.6,4820.4,0.16964744]
[1756052905207,1.63159,4820.5,4820.4,0.16964744]
[1756052905409,20.88959,4820.5,4820.4,0.16964744]
[1756052905907,0.5307,4819.9,4819.8,0.78565]
[1756052906209,0.9206,4820.3,4820.2,0.41502]
[1756052906410,0.9206,4820.8,4820.7,0.94348]
[1756052906615,0.5987,4820.8,4820.7,1.73928]
[1756052906917,19.8577,4820.8,4820.7,1.73928]
[1756052907105,20.1796,4820.8,4820.7,1.73928]
[1756052907301,20.1786,4820.8,4820.7,1.73928]
[1756052907507,0.3749,4820.8,4820.7,1.73928]